Cogmind - Beta 11.1 @@@ ROGUE MODE // 2022.04.24 @ 23:05:21 // Halloween2019/Abominations Player: Kiks Result: Destroyed by Greater Abomination with Autogun Performance ------------- Evolutions (4) 2000 Regions Visited (5) 1000 Robots Destroyed (49) 245 Value Destroyed (2589) 2589 Prototype IDs (1) 20 Alien Tech Used (0) 0 Bonus (0) 0 TOTAL SCORE: 5854 Bonus ------- None Cogmind --------- Core Integrity 0/850 Matter 300/300 Energy 39/100 System Corruption 2% Temperature Cool (0) Movement Core (50) Location -6/Factory Parts ------- > --- POWER (1) -------- (None) > --- PROPULSION (6) --- (None) > --- UTILITY (6) ------ Visual Processing Unit Signal Interpreter Core Analyzer > --- WEAPON (2) ------- (None) > --- INVENTORY (5) ---- Sensor Array Improved Propulsion Shielding Improved Weapon Shielding Small Laser Light EM Pulse Cannon Peak State ------------ > --- POWER ------------ Light Angular Momentum Engine > --- PROPULSION ------- Medium Treads Armored Huge Wheel Gravmag System Improved Airjet > --- UTILITY ---------- Advanced Heat Sink Small Storage Unit Visual Processing Unit Signal Interpreter Seismic Detector Core Analyzer > --- WEAPON ----------- Small Laser Heavy Particle Cannon > --- INVENTORY -------- Carbon-fiber Leg VTOL Module Sensor Array Improved Propulsion Shielding Light EM Pulse Cannon Flak Gun [Rating: 45] Favorites ----------- Power Light Ion Engine Engine Light Ion Engine Propulsion Light Treads Treads Light Treads Leg Aluminum Leg Wheel Armored Huge Wheel Hover Unit Improved Airjet Utility Small Storage Unit Device Seismic Detector Storage Small Storage Unit Processor Signal Interpreter Protection Improved Propulsion Shielding Weapon Autogun Energy Gun Small Laser Energy Cannon Heavy Particle Cannon Ballistic Gun Autogun Ballistic Cannon Flak Cannon Launcher Grenade Launcher Build | -11 -10 -9 -8 -7 -6 ------- Run | Scr Mat Mat Mat Fac Fac Slots Evolved 8 | . . 2 2 2 2 Power . | . . . . . . Propulsion 4 | . . 1 1 1 1 Utility 4 | . . 1 1 1 1 Weapon . | . . . . . . Parts Attached 50 | 7 8 10 4 12 9 Power 6 | 1 2 1 . . 2 Engine 6 | 1 2 1 . . 2 Core . | . . . . . . Reactor . | . . . . . . Propulsion 17 | 2 3 4 1 6 1 Treads 5 | . . 3 . 2 . Leg 4 | . 3 . . . 1 Wheel 4 | 2 . 1 . 1 . Hover 4 | . . . 1 3 . Flight . | . . . . . . Utility 11 | 2 1 1 2 3 2 Device 6 | 1 . 1 1 2 1 Storage 1 | 1 . . . . . Processor 3 | . 1 . . 1 1 Hackware . | . . . . . . Protection 1 | . . . 1 . . Artifact . | . . . . . . Weapon 16 | 2 2 4 1 3 4 Energy Gun 6 | . . 2 . 1 3 Energy Cannon 2 | . . . . 2 . Ballistic Gun 6 | 2 1 2 . . 1 Ballistic Cannon 1 | . . . 1 . . Launcher 1 | . 1 . . . . Special Weapon . | . . . . . . Impact Weapon . | . . . . . . Slashing Weapon . | . . . . . . Piercing Weapon . | . . . . . . Special Melee Weapon . | . . . . . . Unidentified Prototypes 1 | . . . . 1 . Parts Lost 33 | . 7 8 4 5 9 Power 5 | . 1 1 1 . 2 Propulsion 14 | . 3 3 1 3 4 Utility 5 | . 1 1 2 1 . Weapon 9 | . 2 3 . 1 3 Highest Loss Streak 6 | . 6 3 3 3 5 To Critical Strikes . | . . . . . . Average Slot Usage (%) 72 | . 88 78 83 65 63 Engine 3 | . 11 7 5 . . Treads 12 | . . 17 27 13 5 Leg 2 | . 14 2 . . 1 Wheel 5 | . 10 5 . 6 1 Hover 3 | . . . 3 6 2 Device 6 | . 6 4 7 4 11 Storage 8 | . 14 11 9 7 5 Processor 11 | . 4 11 9 10 19 Energy Gun 4 | . . 6 . 4 7 Energy Cannon 1 | . . . . 4 1 Ballistic Gun 7 | . 20 11 9 2 2 Ballistic Cannon 1 | . . . 8 2 . Naked Turns . | . . . . . . Heaviest Build 28 | 13 13 18 28 15 26 Greatest Support 88 | 20 20 60 60 88 28 Greatest Overweight (x) 4 | . 4 3 . 1 4 Average Overweight (x) . | . . . . . 1 Largest Inventory Capacity 8 | 8 8 8 8 8 8 Average Capacity 7 | 7 8 8 8 8 7 Most Carried 8 | 6 8 8 6 7 8 Average Carried 6 | 4 6 6 5 5 7 Final Capacity 8 | 8 8 8 8 8 5 Final Carried 6 | 6 6 5 5 6 5 Class Distribution -------------------- 64% | Mutant 35% | Scavenger-Mutant Dominant Class ---------------- Mutant | -10/Materials Mutant | -9/Materials Mutant | -8/Materials Mutant | -7/Factory Scavenger-Mutant | -6/Factory Resources | -11 -10 -9 -8 -7 -6 ----------- Run | Scr Mat Mat Mat Fac Fac Matter Collected 1718 | 241 275 264 265 525 148 Remotely . | . . . . . . Salvage Created 2038 | 28 430 436 149 489 506 Parts 124 | 2 35 23 11 32 21 Haulers Intercepted . | . . . . . . Recyclers Shooed . | . . . . . . Parts Field Recycled . | . . . . . . Retrieved Matter . | . . . . . . Parts Self-Destructed . | . . . . . . Prevented . | . . . . . . Kills | -11 -10 -9 -8 -7 -6 ------- Run | Scr Mat Mat Mat Fac Fac Combat Hostiles Destroyed 45 | . 12 6 6 13 8 Guns 21 | . 6 5 2 2 6 Cannons 17 | . . . 4 11 2 AOE 7 | . 6 1 . . . Classes Destroyed 8 | 1 3 3 . 1 . Worker 2 | . . 1 . . 1 Tunneler 1 | 1 . . . . . Watcher 1 | . . 1 . . . Swarmer 3 | . 1 . . 2 . Grunt 13 | . 3 . 2 3 5 Sentry 4 | . . 2 . 2 . Hunter 1 | . . . . 1 . Abomination 24 | . 8 4 4 5 3 Best Kill Streak 5 | 1 4 3 5 4 4 Combat Bots Only 5 | . 4 2 5 4 3 Max Kills in Single Turn 1 | 1 1 1 1 1 1 Gunslinging . | . . . . . . Exploded 1 | . 1 1 . . . Melee . | . . . . . . Uniques/NPCs Destroyed . | . . . . . . Combat | -11 -10 -9 -8 -7 -6 -------- Run | Scr Mat Mat Mat Fac Fac Damage Taken 7135 | . 818 1432 823 1766 2296 Core 1709 | . 185 300 173 190 861 Absorbed by Shields 28 | . . . 28 . . Redirected to Shielding 103 | . . . 103 . . Core Remaining (%) 58 | 100 26 25 68 72 . Volleys Fired 204 | 1 41 47 23 53 39 Largest 2 | 2 2 2 2 2 2 Hottest 150 | 40 50 73 67 115 150 Shots Fired 382 | 2 75 91 46 98 70 Gun 290 | 2 64 91 23 50 60 Cannon 81 | . . . 23 48 10 Launcher 11 | . 11 . . . . Special . | . . . . . . Kinetic 243 | 2 64 52 46 64 15 Thermal 96 | . . 7 . 34 55 Explosive 11 | . 11 . . . . Electromagnetic 32 | . . 32 . . . Robot Hit Streak 18 | 1 9 9 13 18 8 Robot Miss Streak 7 | 1 2 5 5 7 4 Penetration Max . | . . . . . . Secondary Targets 1 | . 1 . . . . Max Gunslinging Chain 1 | . 1 . . . . Shots Hit Robots 287 | 1 51 68 39 82 46 Core Hits 167 | 1 29 25 24 50 38 Critical Kills . | . . . . . . Critical Parts Destroyed 1 | . 1 . . . . Critical Strikes 6 | . 1 2 . . 3 Burn 3 | . . . . . 3 Destroy 2 | . 1 1 . . . Corrupt 1 | . . 1 . . . Melee Attacks . | . . . . . . Impact . | . . . . . . Slashing . | . . . . . . Piercing . | . . . . . . Sneak Attacks . | . . . . . . Combat Hostiles . | . . . . . . Follow-up Attacks . | . . . . . . Damage Inflicted 5169 | 24 859 884 811 1413 1178 Guns 3054 | 24 545 731 275 501 978 Cannons 1648 | . . . 536 912 200 Explosions 467 | . 314 153 . . . Melee . | . . . . . . Ramming . | . . . . . . Kinetic 2999 | 24 545 614 811 772 233 Thermal 1764 | . . 178 . 641 945 Explosive 314 | . 314 . . . . Electromagnetic 92 | . . 92 . . . Impact . | . . . . . . Slashing . | . . . . . . Piercing . | . . . . . . Highest Corruption 6 | . 6 1 1 2 2 Average Corruption 1 | . 3 1 1 1 2 Corruption Purged . | . . . . . . Corruption Blocked . | . . . . . . Effects 11 | . 3 2 . 4 2 Matter Fused 5 | . 2 1 . 1 1 Energy Discharges 1 | . . . . 1 . Parts Rejected 1 | . . . . . 1 Data Loss (minor) 3 | . 1 . . 2 . Data Loss (major) 1 | . . 1 . . . Overload Shots . | . . . . . . Overflow Damage 41 | . 20 . 3 18 . Projectiles 21 | . . . 3 18 . Explosions 20 | . 20 . . . . Melee . | . . . . . . Knockbacks 22 | . . . 6 16 . Impact . | . . . . . . Kinetic 19 | . . . 6 13 . Secondary 3 | . . . . 3 . Self-Inflicted Damage 111 | . 92 19 . . . Shots 4 | . 3 1 . . . Rammed 2 | . . . . 1 1 Targets Rammed 2 | . . . . 1 1 Kicked . | . . . . . . Crushed . | . . . . . . Highest Temperature 422 | . 15 178 50 422 112 Average Temperature 58 | . 5 79 16 83 30 Received Heat Transfer 1596 | . 324 63 171 474 564 Effects 1 | . . . . 1 . Energy Bleed 1 | . . . . 1 . Siege Activations . | . . . . . . Robots Corrupted . | . . . . . . Combat Hostiles . | . . . . . . Parts Fried 2 | . 1 . . . 1 Impact Corruptions . | . . . . . . Robots Melted . | . . . . . . Combat Hostiles . | . . . . . . Parts Melted 3 | . . 1 . . 2 Heat Transferred 1592 | . . 136 . 301 1155 Parts Sabotaged . | . . . . . . Parts Stolen . | . . . . . . Parts Stripped . | . . . . . . Power Chain Reactions 4 | . . 4 . . . Missiles Intercepted . | . . . . . . Alert | -11 -10 -9 -8 -7 -6 ------- Run | Scr Mat Mat Mat Fac Fac Peak Influence 244 | 5 218 225 74 244 121 Initial 91 | . 3 91 1 19 . Average 94 | . 108 120 25 122 63 Maximum Alert Level 1 | . 1 1 . 1 . Low Security (%) 87 | 100 85 72 100 84 100 Level 1 12 | . 14 27 . 15 . Level 2 . | . . . . . . Level 3 . | . . . . . . Level 4 . | . . . . . . Level 5 . | . . . . . . High Security . | . . . . . . Max Security . | . . . . . . Squads Dispatched 57 | . 4 6 5 31 11 Investigation 7 | . 3 2 1 1 . Extermination . | . . . . . . Reinforcement 13 | . 1 2 3 3 4 Assault 18 | . . 2 1 11 4 Garrison 19 | . . . . 16 3 Intercept . | . . . . . . Searches Triggered . | . . . . . . Construction Impeded . | . . . . . . Haulers Reinforced 2 | . . . . 1 1 Active Scanning Responses . | . . . . . . Cargo Convoy Interrupts . | . . . . . . Stealth | -11 -10 -9 -8 -7 -6 --------- Run | Scr Mat Mat Mat Fac Fac Distress Signals 34 | . . 6 10 7 11 Communications Jammed . | . . . . . . Distress Signals . | . . . . . . Times Spotted 72 | . 12 14 14 21 11 Peak Tracking Total 7 | . 4 5 6 7 3 Tactical Retreats 6 | . 1 1 1 2 1 Traps | -11 -10 -9 -8 -7 -6 ------- Run | Scr Mat Mat Mat Fac Fac Traps Triggered 1 | . . . . 1 . Indirectly . | . . . . . . Trap Hack Attempts . | . . . . . . Triggered . | . . . . . . Disarmed . | . . . . . . Reprogrammed . | . . . . . . Reused . | . . . . . . Traps Extracted . | . . . . . . Installed . | . . . . . . Triggered 1 | . . . . 1 . Machines | -11 -10 -9 -8 -7 -6 ---------- Run | Scr Mat Mat Mat Fac Fac Machines Disabled 4 | . 3 1 . . . Max in Single Turn 1 | . 1 1 . . . Garrison Access 4 | . . . . 3 1 Machines Sabotaged . | . . . . . . Garrisons Compromised . | . . . . . . Overloaded Fab Kills . | . . . . . . Hacking | -11 -10 -9 -8 -7 -6 --------- Run | Scr Mat Mat Mat Fac Fac Machines Accessed 9 | . 2 3 2 2 . Terminals 9 | . 2 3 2 2 . Fabricators . | . . . . . . Repair Stations . | . . . . . . Recycling Units . | . . . . . . Scanalyzers . | . . . . . . Garrison Access . | . . . . . . Total Hacks 20 | . 4 6 5 5 . Successful 13 | . 3 4 4 2 . Failed 7 | . 1 2 1 3 . Catastrophic . | . . . . . . Database Lockouts . | . . . . . . Manual 19 | . 4 6 4 5 . Terminals 20 | . 4 6 5 5 . Fabricators . | . . . . . . Repair Stations . | . . . . . . Recycling Units . | . . . . . . Scanalyzers . | . . . . . . Garrison Access . | . . . . . . Terminal Hacks 4 | . 1 1 2 . . Level Access Points 3 | . 1 1 1 . . Zone Layout 1 | . . . 1 . . Fabricator Hacks . | . . . . . . Repair Station Hacks . | . . . . . . Recycling Unit Hacks . | . . . . . . Scanalyzer . | . . . . . . Garrison Access Hacks . | . . . . . . Unauthorized Hacks 9 | . 2 3 2 2 . Terminals 9 | . 2 3 2 2 . Track 1 | . . 1 . . . Botnet 8 | . 2 2 2 2 . Fabricators . | . . . . . . Repair Stations . | . . . . . . Recycling Units . | . . . . . . Scanalyzers . | . . . . . . Garrison Access . | . . . . . . Data Cores Recovered . | . . . . . . Used . | . . . . . . Hacking Detections 6 | . 1 3 . 2 . Full Trace Events . | . . . . . . Feedback Events . | . . . . . . Feedback Blocked . | . . . . . . Robot Schematics Acquired . | . . . . . . Robots Built . | . . . . . . Authchips . | . . . . . . Time . | . . . . . . Total Robot Build Rating . | . . . . . . Part Schematics Acquired . | . . . . . . Parts Built . | . . . . . . Authchips . | . . . . . . Time . | . . . . . . Total Part Build Rating . | . . . . . . Parts Repaired . | . . . . . . Time . | . . . . . . Parts Recycled . | . . . . . . Recycled Matter . | . . . . . . Retrieved Matter . | . . . . . . Retrieved Components . | . . . . . . Parts Scanalyzed . | . . . . . . Part Schematics Acquired . | . . . . . . Parts Damaged . | . . . . . . Bothacking | -11 -10 -9 -8 -7 -6 ------------ Run | Scr Mat Mat Mat Fac Fac Used RIF Installer . | . . . . . . Robots Hacked . | . . . . . . Non-combat . | . . . . . . Combat . | . . . . . . Robot Hacks Applied . | . . . . . . Relay Couplers Released 10 | . . . . 8 2 Machine Destruction 6 | . . . . 4 2 Programmers 4 | . . . . 4 . Fabnet Peak Effective % . | . . . . . . Robots Rewired . | . . . . . . Allies Hacked . | . . . . . . Hacks Repelled . | . . . . . . Allies | -11 -10 -9 -8 -7 -6 -------- Run | Scr Mat Mat Mat Fac Fac Total Allies . | . . . . . . Largest Group . | . . . . . . Highest-Rated Group . | . . . . . . Highest-Rated Ally . | . . . . . . Total Orders . | . . . . . . Ally Attacks . | . . . . . . Total Damage . | . . . . . . Kills . | . . . . . . Allies Corrupted . | . . . . . . Allies Melted . | . . . . . . Intel | -11 -10 -9 -8 -7 -6 ------- Run | Scr Mat Mat Mat Fac Fac Robot Analysis Total . | . . . . . . Derelict Logs Recovered . | . . . . . . Drone Launches . | . . . . . . Drone Recoveries . | . . . . . . Exploration | -11 -10 -9 -8 -7 -6 ------------- Run | Scr Mat Mat Mat Fac Fac Turns Passed 2499 | 79 351 436 251 875 507 Spaces Moved 1246 | 75 183 174 110 504 200 Core 115 | 1 2 28 . . 84 Treads 279 | . . 38 110 131 . Legs 153 | . 71 28 . . 54 Wheels 698 | 74 110 80 . 372 62 Hover 1 | . . . . 1 . Flight . | . . . . . . Fastest Speed 50 | 50 80 80 160 100 100 Average Speed 125 | 79 96 129 160 115 172 Slowest Speed 250 | 80 250 200 160 160 250 Overloaded Moves . | . . . . . . Propulsion Burnouts . | . . . . . . Robots Hopped . | . . . . . . Cave-ins Triggered . | . . . . . . Exploration Rate (%) 19 | 4 41 30 16 18 8 Regions Visited 5 Branch Regions . Pre-discovered Areas . | . . . . . . Known Exits Taken 4 | . 1 1 1 1 . Unknown Exits Taken 1 | 1 . . . . . Scrap Searched . | . . . . . . Spaces Dug . | . . . . . . Terrain Destroyed 38 | . 29 9 . . . Melee . | . . . . . . Projectile . | . . . . . . AOE 38 | . 29 9 . . . Terrain Rammed . | . . . . . . Walls Destroyed . | . . . . . . Machines Disabled . | . . . . . . Actions | -11 -10 -9 -8 -7 -6 --------- Run | Scr Mat Mat Mat Fac Fac Total 1685 | 88 240 265 142 681 269 Wait 153 | . 2 28 5 105 13 Move 1241 | 74 182 173 109 503 200 Hop . | . . . . . . Pick Up 24 | 6 6 5 1 4 2 Fast Attach 31 | 7 1 4 3 10 6 Attach 17 | . 6 6 1 2 2 Detach . | . . . . . . Swap 2 | . 1 . . . 1 Drop 11 | . 1 2 . 3 5 Fire 204 | 1 41 47 23 53 39 Melee . | . . . . . . Ram . | . . . . . . Kick . | . . . . . . Crush 2 | . . . . 1 1 Escape Stasis . | . . . . . . Rewire . | . . . . . . Trap . | . . . . . . Miscellaneous . | . . . . . . Route ------- -11/Scrapyard -10/Materials (discovered 3 exits: *Mat x3) -9/Materials (discovered 3 exits: *Mat x3) -8/Materials (discovered 3 exits: *Fac x3) -7/Factory -6/Factory History --------- Turn | Location | Event 22 | -11/Scrapyard | Discovered new exit (range 16) 80 | -11/Scrapyard | Entered Materials 171 | -10/Materials | Identified exit to Materials 250 | -10/Materials | Core integrity fell below 50% 318 | -10/Materials | Lost 6 parts (1p2n1u2w) 341 | -10/Materials | Build established: Mutant 431 | -10/Materials | Entered another Materials area 431 | -9/Materials | Evolved 2 slots: Propulsion x1, Utility x1 516 | -9/Materials | Lost 3 parts (2n1w) 634 | -9/Materials | Identified exit to Materials 736 | -9/Materials | Core integrity fell below 50% 867 | -9/Materials | Entered another Materials area 867 | -8/Materials | Evolved 2 slots: Propulsion x1, Utility x1 912 | -8/Materials | Identified exit to Factory 1118 | -8/Materials | Entered Factory 1118 | -7/Factory | Evolved 2 slots: Propulsion x1, Utility x1 1126 | -7/Factory | Lost 3 parts (1n2u) 1152 | -7/Factory | Garrison activated, responded to threat 1157 | -7/Factory | Garrison activated, responded to threat 1263 | -7/Factory | Garrison activated, responded to threat 1393 | -7/Factory | Garrison activated, responded to threat 1408 | -7/Factory | Garrison activated, responded to threat 1430 | -7/Factory | Lost 3 parts (2n1w) 1699 | -7/Factory | Garrison activated, responded to threat 1713 | -7/Factory | Garrison activated, responded to threat 1818 | -7/Factory | Discovered new exit (range 5) 1820 | -7/Factory | Identified exit to Storage 1908 | -7/Factory | Garrison activated, responded to threat 1940 | -7/Factory | Build established: Scavenger-Mutant 1975 | -7/Factory | Discovered new exit (range 17) 1992 | -7/Factory | Identified exit to Factory 1993 | -7/Factory | Entered another Factory area 1993 | -6/Factory | Evolved 2 slots: Propulsion x1, Utility x1 2023 | -6/Factory | Garrison activated, responded to threat 2036 | -6/Factory | Garrison activated, responded to threat 2142 | -6/Factory | Lost 5 parts (1p3n1w) 2348 | -6/Factory | Garrison activated, responded to threat 2460 | -6/Factory | Core integrity fell below 50% 2495 | -6/Factory | Core integrity fell below 20% 2500 | -6/Factory | Destroyed by Greater Abomination with Autogun Last Messages --------------- 02474_ Engulfed by violent ripples tearing at the fabric of space. 02486_ Plasma Rifle destroyed. 02488_ Dropped Adv. Heat Sink. 02489_ Frozen by Ice Anomaly. 02494_ Greater Abomination absorbs Adv. Heat Sink. 02495_ Dropped Seismic Detector. 02495_ Dropped Sml. Storage Unit. 02496_ Greater Abomination feeds off Hungry Anomaly, taking Corrupted Autogun. 02496_ Slammed into Greater Abomination. 02497_ Frozen by Ice Anomaly. 02497_ Greater Abomination feeds off Hungry Anomaly, taking Phase Cannon. 02498_ Hungry Anomaly eats Sml. Storage Unit. 02498_ Frozen by Ice Anomaly. 02498_ Greater Abomination absorbs VTOL Module. 02498_ Power Conduit explodes. 02498_ Med. Treads destroyed. 02498_ Power Conduit explodes. 02498_ Terminal disabled. 02498_ Power Conduit explodes. Map ----- +----------------------------------------------------+ | ??????????? ##########% #?????????????? | | ????????????% % # % % %#?????????????? | | ????????????"""" # % #?????????????? | | ??????????? """" # #?????????????? | | ??????????? """" %# #?????????????? | | ??????????? """" +% % #?????????????? | | ?????????? """" ^# # #???????????? | | ?????????? """" # % " ??????????? | | ????????# # %#""""""""""""??????????? | | ????????########### # % ??????????? | | ?????????# #? ???????????????????? | | ?????????# #? ???????????????????? | | ?????????# """" #? ???????????????????? | | ?????????# " " " n""R" #? ????????????????????? | | ?????????# " " " "" " #? ????????????????????? | | ?????????# " " " % # ????????????????????? | | ?????????# " " "% % # ????????????????????? | | ?????????# " " " # ?????????????????????? | | ?????????# " " " % # ?????????????????????? | | ????????? " " "% # ?????????????????????? | | ????????? " " "% % # ?????????????????????? | | ???????? " " "% ###????????????????????? | | ?? ????? n % ;;############?????????? | | ?? ???? ; #?????????? | | ?? ???? A; #?????????? | | ?? ???? @; """" #?????????? | | ?##"###+### """" #?????????? | | ?# ;; """" #?????????? | | ?# "" ;; """" ###???????? | | ?# "" ; " #??????? | | ?# "T + """" " " ??? | | ?# "" / # # """" """"""" ??? | | ?# "" + # """" " ?????? | | ?# # # """"???????????? | | ?# " # ??????????? | | ?# ### +############# ##??????????? | | ?#="""" [#??; ???????????##???????????? | | ?# """" #??# # ??????????????????????? | | ?# """" #??# # ????????????????????? | | ?# """" #### # ??????????????????? | | ?# """" + # #?????????????????? | | ?# """" ###### #?????????????????? | | ?# #????# #?????????????????? | | ?# #????# #?????????????????? | | ?#########????# % #?????????????????? | | ??????????????##################?????????????????? | | | | | | | | | +----------------------------------------------------+ Best States ------------- Heat Dissipation 56 Energy Generation 18 Energy Capacity 265 Matter Stores 300 Matter Capacity 300 Sight Range 18 Terrain Scan Range 16 Terrain Scan Density 10 Propulsion Shielding 66 Evasion (%) 55 Core Analysis 6 Recoil Reduction 4 Item Schematics ----------------- None Robot Schematics ------------------ None Fabricated ------------ Nothing Alien Tech Used ----------------- None Achievements -------------- None Challenges ------------ None Game ------ Seed MomentumBackupMinigun Manual? 0 Play Time 00:28:17 Cumulative 108.8 hours Start 2022.04.24 @ 22:41:38 End 2022.04.24 @ 23:05:21 Sessions 1 Manual Loads 0 Difficulty Rogue Special Mode Halloween2019/Abominations Game No. 70 Rogue 31 Adventurer 5 Explorer 34 Win Type - Total 19 Types 10/0/4/4/1/0/0/0/0 Lore% 70 Gallery% 68 Achievement% 75 Wizard Run 0 Options --------- ASCII 0 Keyboard 0 Movement Mouse Keybinds 0 Fullscreen 1 Font 18/Terminus Map View 76x50 Tactical HUD 1 Map Filters NONE Filters NONE Steam 1 RUN: ef60df3a-887c-4a97-a788-54d92085c2ce